[Event "Titled Tuesday Blitz April 4 Early 2023"]
[White "Guzman Moneo, Alberto"]
[Black "Seemann, Jakub"]
[WhiteFideId "2209616"]
[BlackFideId "21874697"]
[WhiteElo "2157"]
[BlackElo "2364"]
[Result "1/2-1/2"]
[Round "10"]
[TimeControl "180+2"]
[Date "2023.04.04"]
[WhiteClock "0:00:09"]
[BlackClock "0:00:08"]

1. e4 {[%clk 0:03:00]}  e5 {[%clk 0:02:41]} 2. Nf3 {[%clk 0:02:59]}  Nc6 {[%clk 0:02:42]} 3. Bc4 {[%clk 0:02:59]}  Nf6 {[%clk 0:02:40]} 4. Ng5 {[%clk 0:02:59]}  Bc5 {[%clk 0:02:31]} 5. Bxf7+ {[%clk 0:02:56]}  Ke7 {[%clk 0:02:30]} 6. Bc4 {[%clk 0:02:56]}  Qe8 {[%clk 0:02:26]} 7. Nc3 {[%clk 0:02:55]}  d6 {[%clk 0:02:21]} 8. O-O {[%clk 0:02:52]}  h6 {[%clk 0:02:18]} 9. Nf3 {[%clk 0:02:52]}  Qg6 {[%clk 0:02:17]} 10. Nd5+ {[%clk 0:02:47]}  Nxd5 {[%clk 0:02:12]} 11. exd5 {[%clk 0:02:48]}  Nd4 {[%clk 0:02:04]} 12. Nxd4 {[%clk 0:02:43]}  Bxd4 {[%clk 0:02:05]} 13. c3 {[%clk 0:02:22]}  Bb6 {[%clk 0:02:04]} 14. d4 {[%clk 0:02:22]}  e4 {[%clk 0:02:01]} 15. f3 {[%clk 0:02:09]}  Bh3 {[%clk 0:01:55]} 16. Qc2 {[%clk 0:02:03]}  Kd7 {[%clk 0:01:40]} 17. fxe4 {[%clk 0:01:53]}  h5 {[%clk 0:01:29]} 18. Bb5+ {[%clk 0:01:50]}  c6 {[%clk 0:01:28]} 19. dxc6+ {[%clk 0:01:50]}  bxc6 {[%clk 0:01:29]} 20. Bd3 {[%clk 0:01:48]}  Raf8 {[%clk 0:01:05]} 21. Bf4 {[%clk 0:01:42]}  c5 {[%clk 0:00:45]} 22. e5 {[%clk 0:01:33]}  Bf5 {[%clk 0:00:43]} 23. Bxf5+ {[%clk 0:01:26]}  Rxf5 {[%clk 0:00:44]} 24. Qa4+ {[%clk 0:01:21]}  Kd8 {[%clk 0:00:20]} 25. Qc6 {[%clk 0:01:11]}  Rhf8 {[%clk 0:00:14]} 26. Qa8+ {[%clk 0:00:35]}  Kd7 {[%clk 0:00:13]} 27. Qb7+ {[%clk 0:00:33]}  Kd8 {[%clk 0:00:14]} 28. Qb8+ {[%clk 0:00:29]}  Kd7 {[%clk 0:00:12]} 29. Qb7+ {[%clk 0:00:23]}  Kd8 {[%clk 0:00:13]} 30. e6 {[%clk 0:00:18]}  Qxe6 {[%clk 0:00:03]} 31. Bg5+ {[%clk 0:00:19]}  R5f6 {[%clk 0:00:03]} 32. Bxf6+ {[%clk 0:00:18]}  gxf6 {[%clk 0:00:04]} 33. Rae1 {[%clk 0:00:18]}  Qd7 {[%clk 0:00:04]} 34. Qa8+ {[%clk 0:00:16]}  Qc8 {[%clk 0:00:03]} 35. Qxc8+ {[%clk 0:00:16]}  Kxc8 {[%clk 0:00:04]} 36. dxc5 {[%clk 0:00:15]}  Bxc5+ {[%clk 0:00:05]} 37. Kh1 {[%clk 0:00:16]}  Kd7 {[%clk 0:00:06]} 38. b4 {[%clk 0:00:16]}  Bb6 {[%clk 0:00:06]} 39. Rf5 {[%clk 0:00:16]}  h4 {[%clk 0:00:05]} 40. Ref1 {[%clk 0:00:16]}  Ke6 {[%clk 0:00:05]} 41. h3 {[%clk 0:00:16]}  d5 {[%clk 0:00:05]} 42. R5f4 {[%clk 0:00:15]}  Rc8 {[%clk 0:00:05]} 43. R1f3 {[%clk 0:00:14]}  f5 {[%clk 0:00:01]} 44. Rxf5 {[%clk 0:00:14]}  Bc7 {[%clk 0:00:02]} 45. Rf6+ {[%clk 0:00:14]}  Ke7 {[%clk 0:00:02]} 46. Rf7+ {[%clk 0:00:14]}  Ke6 {[%clk 0:00:03]} 47. Rf8 {[%clk 0:00:14]}  Bd8 {[%clk 0:00:02]} 48. Re3+ {[%clk 0:00:12]}  Kd7 {[%clk 0:00:02]} 49. Rf7+ {[%clk 0:00:12]}  Kd6 {[%clk 0:00:02]} 50. Rf1 {[%clk 0:00:11]}  Bb6 {[%clk 0:00:01]} 51. Rd3 {[%clk 0:00:11]}  Rc4 {[%clk 0:00:01]} 52. Rfd1 {[%clk 0:00:11]}  d4 {[%clk 0:00:02]} 53. cxd4 {[%clk 0:00:11]}  Rxb4 {[%clk 0:00:02]} 54. d5 {[%clk 0:00:11]}  a5 {[%clk 0:00:02]} 55. a3 {[%clk 0:00:11]}  Ra4 {[%clk 0:00:02]} 56. R1d2 {[%clk 0:00:11]}  Bc5 {[%clk 0:00:02]} 57. Rc2 {[%clk 0:00:10]}  Re4 {[%clk 0:00:02]} 58. Rc1 {[%clk 0:00:08]}  a4 {[%clk 0:00:01]} 59. Rcd1 {[%clk 0:00:08]}  Re8 {[%clk 0:00:02]} 60. Rf3 {[%clk 0:00:07]}  Rb8 {[%clk 0:00:02]} 61. Rf6+ {[%clk 0:00:07]}  Kd7 {[%clk 0:00:02]} 62. Rh6 {[%clk 0:00:07]}  Bd6 {[%clk 0:00:02]} 63. Rxh4 {[%clk 0:00:06]}  Kc8 {[%clk 0:00:02]} 64. Rxa4 {[%clk 0:00:06]}  Kd7 {[%clk 0:00:02]} 65. Rc4 {[%clk 0:00:07]}  Rb3 {[%clk 0:00:01]} 66. Rcd4 {[%clk 0:00:07]}  Rxa3 {[%clk 0:00:02]} 67. R4d3 {[%clk 0:00:08]}  Ra2 {[%clk 0:00:02]} 68. R3d2 {[%clk 0:00:08]}  Ra3 {[%clk 0:00:02]} 69. Rd3 {[%clk 0:00:08]}  Ra2 {[%clk 0:00:03]} 70. h4 {[%clk 0:00:09]}  Ra4 {[%clk 0:00:03]} 71. g3 {[%clk 0:00:09]}  Ra2 {[%clk 0:00:02]} 72. R1d2 {[%clk 0:00:09]}  Ra1+ {[%clk 0:00:03]} 73. Kg2 {[%clk 0:00:10]}  Ra4 {[%clk 0:00:03]} 74. Kh3 {[%clk 0:00:10]}  Ke7 {[%clk 0:00:03]} 75. Rf3 {[%clk 0:00:10]}  Rc4 {[%clk 0:00:02]} 76. Re2+ {[%clk 0:00:11]}  Kd7 {[%clk 0:00:02]} 77. Rf5 {[%clk 0:00:11]}  Rd4 {[%clk 0:00:01]} 78. Rg2 {[%clk 0:00:11]}  Rd3 {[%clk 0:00:01]} 79. h5 {[%clk 0:00:11]}  Rd1 {[%clk 0:00:01]} 80. Kg4 {[%clk 0:00:11]}  Rh1 {[%clk 0:00:01]} 81. Rf7+ {[%clk 0:00:10]}  Ke8 {[%clk 0:00:02]} 82. Rf6 {[%clk 0:00:10]}  Ke7 {[%clk 0:00:01]} 83. Re6+ {[%clk 0:00:10]}  Kd7 {[%clk 0:00:02]} 84. h6 {[%clk 0:00:11]}  Bc5 {[%clk 0:00:02]} 85. Rc2 {[%clk 0:00:10]}  Bd4 {[%clk 0:00:01]} 86. Ra2 {[%clk 0:00:10]}  Kc7 {[%clk 0:00:01]} 87. Raa6 {[%clk 0:00:09]}  Kd7 {[%clk 0:00:01]} 88. Rac6 {[%clk 0:00:10]}  Bb2 {[%clk 0:00:01]} 89. Rg6 {[%clk 0:00:10]}  Ke7 {[%clk 0:00:01]} 90. Ra6 {[%clk 0:00:10]}  Kf7 {[%clk 0:00:01]} 91. Ra7+ {[%clk 0:00:10]}  Kxg6 {[%clk 0:00:02]} 92. h7 {[%clk 0:00:10]}  Rxh7 {[%clk 0:00:01]} 93. Rxh7 {[%clk 0:00:11]}  Kxh7 {[%clk 0:00:02]} 94. Kf5 {[%clk 0:00:12]}  Kg7 {[%clk 0:00:03]} 95. Ke6 {[%clk 0:00:12]}  Kf8 {[%clk 0:00:04]} 96. g4 {[%clk 0:00:12]}  Ke8 {[%clk 0:00:05]} 97. g5 {[%clk 0:00:12]}  Kd8 {[%clk 0:00:06]} 98. g6 {[%clk 0:00:10]}  Ba1 {[%clk 0:00:06]} 99. Kf7 {[%clk 0:00:08]}  Kd7 {[%clk 0:00:07]} 100. g7 {[%clk 0:00:09]}  Bxg7 {[%clk 0:00:07]} 101. Kxg7 {[%clk 0:00:10]}  Kd6 {[%clk 0:00:07]} 102. Kg6 {[%clk 0:00:09]}  Kxd5 {[%clk 0:00:08]} 1/2-1/2


[Site "https://www.chess.com"]

[Event "Titled Tuesday Blitz April 4 Early 2023"]
[White "Pakleza, Zbigniew"]
[Black "Vakhidov, Shahzod"]
[WhiteFideId "1119290"]
[BlackFideId "14205270"]
[WhiteElo "2410"]
[BlackElo "2212"]
[Result "1/2-1/2"]
[Round "10"]
[TimeControl "180+2"]
[Date "2023.04.04"]
[WhiteClock "0:00:03"]
[BlackClock "0:00:04"]

1. d4 {[%clk 0:03:00]}  Nf6 {[%clk 0:02:57]} 2. Nf3 {[%clk 0:03:00]}  g6 {[%clk 0:02:55]} 3. Bf4 {[%clk 0:03:00]}  Bg7 {[%clk 0:02:54]} 4. e3 {[%clk 0:03:01]}  d6 {[%clk 0:02:53]} 5. h3 {[%clk 0:03:01]}  O-O {[%clk 0:02:54]} 6. Be2 {[%clk 0:03:02]}  c5 {[%clk 0:02:54]} 7. c3 {[%clk 0:03:02]}  Qb6 {[%clk 0:02:54]} 8. Qb3 {[%clk 0:03:02]}  Be6 {[%clk 0:02:55]} 9. Qxb6 {[%clk 0:03:02]}  axb6 {[%clk 0:02:56]} 10. a3 {[%clk 0:03:03]}  Bd5 {[%clk 0:02:56]} 11. Nbd2 {[%clk 0:03:03]}  Nbd7 {[%clk 0:02:53]} 12. O-O {[%clk 0:03:03]}  Bc6 {[%clk 0:02:51]} 13. Bg3 {[%clk 0:02:49]}  b5 {[%clk 0:02:38]} 14. Bd3 {[%clk 0:02:49]}  Nh5 {[%clk 0:01:54]} 15. Bh2 {[%clk 0:02:41]}  e5 {[%clk 0:01:52]} 16. Rfd1 {[%clk 0:02:05]}  f5 {[%clk 0:01:45]} 17. d5 {[%clk 0:01:54]}  Bxd5 {[%clk 0:01:37]} 18. Bxb5 {[%clk 0:01:55]}  Nb6 {[%clk 0:01:36]} 19. Nf1 {[%clk 0:01:36]}  Kh8 {[%clk 0:01:28]} 20. c4 {[%clk 0:01:26]}  Bxf3 {[%clk 0:01:10]} 21. gxf3 {[%clk 0:01:27]}  Rfd8 {[%clk 0:01:11]} 22. Rd2 {[%clk 0:01:12]}  Kg8 {[%clk 0:00:59]} 23. Rad1 {[%clk 0:01:10]}  Nc8 {[%clk 0:01:00]} 24. b4 {[%clk 0:00:52]}  b6 {[%clk 0:00:57]} 25. bxc5 {[%clk 0:00:49]}  bxc5 {[%clk 0:00:57]} 26. a4 {[%clk 0:00:50]}  Kf7 {[%clk 0:00:54]} 27. Ng3 {[%clk 0:00:49]}  Nf6 {[%clk 0:00:50]} 28. Ne2 {[%clk 0:00:48]}  Ke7 {[%clk 0:00:44]} 29. Bxe5 {[%clk 0:00:47]}  Ne8 {[%clk 0:00:30]} 30. Bxg7 {[%clk 0:00:45]}  Nxg7 {[%clk 0:00:31]} 31. Nc3 {[%clk 0:00:41]}  Nb6 {[%clk 0:00:31]} 32. f4 {[%clk 0:00:32]}  Nh5 {[%clk 0:00:31]} 33. Rb1 {[%clk 0:00:28]}  Nf6 {[%clk 0:00:29]} 34. Bc6 {[%clk 0:00:27]}  Nxc4 {[%clk 0:00:29]} 35. Rdd1 {[%clk 0:00:15]}  Rab8 {[%clk 0:00:28]} 36. Nd5+ {[%clk 0:00:11]}  Nxd5 {[%clk 0:00:25]} 37. Bxd5 {[%clk 0:00:12]}  Na5 {[%clk 0:00:23]} 38. Kg2 {[%clk 0:00:06]}  Kd7 {[%clk 0:00:19]} 39. f3 {[%clk 0:00:05]}  Kc7 {[%clk 0:00:19]} 40. e4 {[%clk 0:00:06]}  fxe4 {[%clk 0:00:17]} 41. fxe4 {[%clk 0:00:07]}  Rb4 {[%clk 0:00:11]} 42. Ra1 {[%clk 0:00:07]}  Rf8 {[%clk 0:00:09]} 43. Rf1 {[%clk 0:00:04]}  Rb2+ {[%clk 0:00:08]} 44. Kg3 {[%clk 0:00:05]}  Rc2 {[%clk 0:00:05]} 45. Rac1 {[%clk 0:00:03]}  Rd2 {[%clk 0:00:04]} 46. Rcd1 {[%clk 0:00:02]}  Rc2 {[%clk 0:00:04]} 47. Rc1 {[%clk 0:00:03]}  Rb2 {[%clk 0:00:05]} 48. h4 {[%clk 0:00:04]}  Rfb8 {[%clk 0:00:05]} 49. h5 {[%clk 0:00:03]}  Nb3 {[%clk 0:00:06]} 50. hxg6 {[%clk 0:00:03]}  hxg6 {[%clk 0:00:05]} 51. Rcd1 {[%clk 0:00:03]}  Nd4 {[%clk 0:00:05]} 52. Rf2 {[%clk 0:00:03]}  Rxf2 {[%clk 0:00:05]} 53. Kxf2 {[%clk 0:00:03]}  Rb2+ {[%clk 0:00:06]} 54. Kg3 {[%clk 0:00:03]}  Rb4 {[%clk 0:00:06]} 55. a5 {[%clk 0:00:03]}  Ra4 {[%clk 0:00:06]} 56. Kg4 {[%clk 0:00:03]}  Rxa5 {[%clk 0:00:06]} 57. Kg5 {[%clk 0:00:03]}  Ne2 {[%clk 0:00:05]} 58. Rf1 {[%clk 0:00:03]}  c4 {[%clk 0:00:05]} 59. Kxg6 {[%clk 0:00:02]}  c3 {[%clk 0:00:05]} 60. Bc4 {[%clk 0:00:02]}  Nd4 {[%clk 0:00:03]} 61. Rc1 {[%clk 0:00:02]}  Rc5 {[%clk 0:00:03]} 62. Rxc3 {[%clk 0:00:01]}  Ne2 {[%clk 0:00:03]} 63. Bxe2 {[%clk 0:00:02]}  Rxc3 {[%clk 0:00:02]} 64. Bg4 {[%clk 0:00:02]}  Kd8 {[%clk 0:00:03]} 65. f5 {[%clk 0:00:02]}  Ke7 {[%clk 0:00:03]} 66. f6+ {[%clk 0:00:03]}  Kf8 {[%clk 0:00:03]} 67. Bf5 {[%clk 0:00:03]}  Rc5 {[%clk 0:00:03]} 68. Be6 {[%clk 0:00:03]}  Re5 {[%clk 0:00:04]} 69. Bd5 {[%clk 0:00:03]}  Re8 {[%clk 0:00:03]} 70. Kf5 {[%clk 0:00:03]}  Re5+ {[%clk 0:00:03]} 71. Kg6 {[%clk 0:00:03]}  Re8 {[%clk 0:00:04]} 72. f7 {[%clk 0:00:03]}  Re5 {[%clk 0:00:04]} 73. Kf6 {[%clk 0:00:04]}  Re7 {[%clk 0:00:04]} 74. Be6 {[%clk 0:00:04]}  Rc7 {[%clk 0:00:03]} 75. Bd5 {[%clk 0:00:04]}  Re7 {[%clk 0:00:04]} 76. Kf5 {[%clk 0:00:03]}  Re5+ {[%clk 0:00:04]} 77. Kf6 {[%clk 0:00:03]}  Re7 {[%clk 0:00:04]} 1/2-1/2


[Site "https://www.chess.com"]

[Event "Titled Tuesday Blitz April 4 Early 2023"]
[White "Hirneise, Jens"]
[Black "Weetik, Vjacheslav"]
[WhiteFideId "24614734"]
[BlackFideId "4153472"]
[WhiteElo "2345"]
[BlackElo "2469"]
[Result "1/2-1/2"]
[Round "10"]
[TimeControl "180+2"]
[Date "2023.04.04"]
[WhiteClock "0:00:03"]
[BlackClock "0:00:12"]

1. Nf3 {[%clk 0:03:00]}  Nf6 {[%clk 0:02:59]} 2. c4 {[%clk 0:03:01]}  e6 {[%clk 0:02:59]} 3. Nc3 {[%clk 0:03:00]}  d5 {[%clk 0:03:00]} 4. d4 {[%clk 0:03:00]}  Be7 {[%clk 0:02:59]} 5. g3 {[%clk 0:02:59]}  O-O {[%clk 0:02:57]} 6. Bg2 {[%clk 0:02:59]}  c6 {[%clk 0:02:57]} 7. cxd5 {[%clk 0:02:55]}  exd5 {[%clk 0:02:56]} 8. O-O {[%clk 0:02:54]}  Re8 {[%clk 0:02:49]} 9. Bg5 {[%clk 0:02:52]}  h6 {[%clk 0:02:43]} 10. Bxf6 {[%clk 0:02:51]}  Bxf6 {[%clk 0:02:44]} 11. e3 {[%clk 0:02:50]}  Bf5 {[%clk 0:02:43]} 12. b4 {[%clk 0:02:48]}  Qd6 {[%clk 0:02:16]} 13. b5 {[%clk 0:02:39]}  c5 {[%clk 0:02:15]} 14. Ne5 {[%clk 0:02:12]}  Be6 {[%clk 0:01:30]} 15. f4 {[%clk 0:01:54]}  cxd4 {[%clk 0:00:22]} 16. Qxd4 {[%clk 0:01:51]}  Nd7 {[%clk 0:00:19]} 17. Nxd5 {[%clk 0:01:44]}  Bxd5 {[%clk 0:00:09]} 18. Qxd5 {[%clk 0:01:41]}  Qxd5 {[%clk 0:00:09]} 19. Bxd5 {[%clk 0:01:41]}  Nxe5 {[%clk 0:00:10]} 20. fxe5 {[%clk 0:01:40]}  Rxe5 {[%clk 0:00:10]} 21. Bxb7 {[%clk 0:01:37]}  Rb8 {[%clk 0:00:11]} 22. Bc6 {[%clk 0:01:34]}  Rexb5 {[%clk 0:00:11]} 23. Rxf6 {[%clk 0:01:09]}  gxf6 {[%clk 0:00:11]} 24. Bxb5 {[%clk 0:01:09]}  Rxb5 {[%clk 0:00:11]} 25. Rf1 {[%clk 0:01:06]}  Kg7 {[%clk 0:00:09]} 26. Rf4 {[%clk 0:01:05]}  f5 {[%clk 0:00:08]} 27. Ra4 {[%clk 0:01:02]}  a5 {[%clk 0:00:08]} 28. Kg2 {[%clk 0:00:57]}  Kf6 {[%clk 0:00:09]} 29. Kf3 {[%clk 0:00:54]}  Ke5 {[%clk 0:00:09]} 30. a3 {[%clk 0:00:51]}  Rc5 {[%clk 0:00:07]} 31. Rh4 {[%clk 0:00:48]}  Rc3 {[%clk 0:00:05]} 32. Rxh6 {[%clk 0:00:27]}  Rxa3 {[%clk 0:00:05]} 33. Ra6 {[%clk 0:00:24]}  Ra1 {[%clk 0:00:05]} 34. h4 {[%clk 0:00:24]}  a4 {[%clk 0:00:05]} 35. h5 {[%clk 0:00:22]}  Rh1 {[%clk 0:00:02]} 36. Rxa4 {[%clk 0:00:17]}  Rxh5 {[%clk 0:00:02]} 37. Ra5+ {[%clk 0:00:16]}  Kf6 {[%clk 0:00:03]} 38. Kf4 {[%clk 0:00:15]}  Kg6 {[%clk 0:00:03]} 39. g4 {[%clk 0:00:13]}  Rh4 {[%clk 0:00:03]} 40. Rxf5 {[%clk 0:00:11]}  Rh1 {[%clk 0:00:04]} 41. Kg3 {[%clk 0:00:09]}  Rg1+ {[%clk 0:00:04]} 42. Kf3 {[%clk 0:00:09]}  Rf1+ {[%clk 0:00:04]} 43. Ke4 {[%clk 0:00:09]}  Rg1 {[%clk 0:00:05]} 44. Rf4 {[%clk 0:00:08]}  f6 {[%clk 0:00:05]} 45. Kf3 {[%clk 0:00:08]}  Rf1+ {[%clk 0:00:05]} 46. Kg3 {[%clk 0:00:08]}  Re1 {[%clk 0:00:06]} 47. Kf2 {[%clk 0:00:08]}  Ra1 {[%clk 0:00:06]} 48. Rd4 {[%clk 0:00:08]}  Ra2+ {[%clk 0:00:06]} 49. Kf3 {[%clk 0:00:08]}  Ra1 {[%clk 0:00:06]} 50. Rd2 {[%clk 0:00:06]}  Rf1+ {[%clk 0:00:07]} 51. Rf2 {[%clk 0:00:06]}  Ra1 {[%clk 0:00:07]} 52. Rg2 {[%clk 0:00:06]}  Rf1+ {[%clk 0:00:08]} 53. Rf2 {[%clk 0:00:06]}  Rb1 {[%clk 0:00:09]} 54. Kf4 {[%clk 0:00:05]}  Rb4+ {[%clk 0:00:09]} 55. e4 {[%clk 0:00:06]}  Rb3 {[%clk 0:00:08]} 56. Rf3 {[%clk 0:00:05]}  Rb4 {[%clk 0:00:08]} 57. Rd3 {[%clk 0:00:05]}  Rb1 {[%clk 0:00:08]} 58. Rd6 {[%clk 0:00:04]}  Rf1+ {[%clk 0:00:09]} 59. Kg3 {[%clk 0:00:04]}  Kg5 {[%clk 0:00:09]} 60. Rd5+ {[%clk 0:00:03]}  Kg6 {[%clk 0:00:10]} 61. Rf5 {[%clk 0:00:02]}  Re1 {[%clk 0:00:11]} 62. Kf4 {[%clk 0:00:02]}  Rf1+ {[%clk 0:00:11]} 63. Kg3 {[%clk 0:00:03]}  Re1 {[%clk 0:00:12]} 64. Kf4 {[%clk 0:00:02]}  Rf1+ {[%clk 0:00:12]} 65. Kg3 {[%clk 0:00:03]} 1/2-1/2


[Site "https://www.chess.com"]

[Event "Titled Tuesday Blitz April 4 Early 2023"]
[White "Demin, Vladimir"]
[Black "Skvortsov, Andrei"]
[WhiteFideId "4167457"]
[BlackFideId "24108600"]
[WhiteElo "2549"]
[BlackElo "2259"]
[Result "0-1"]
[Round "10"]
[TimeControl "180+2"]
[Date "2023.04.04"]
[WhiteClock "0:00:06"]
[BlackClock "0:01:03"]

1. e4 {[%clk 0:03:00]}  c6 {[%clk 0:02:56]} 2. d4 {[%clk 0:03:00]}  d5 {[%clk 0:02:57]} 3. e5 {[%clk 0:03:01]}  Bf5 {[%clk 0:02:56]} 4. h4 {[%clk 0:03:01]}  h5 {[%clk 0:02:56]} 5. Bd3 {[%clk 0:03:02]}  Bxd3 {[%clk 0:02:57]} 6. Qxd3 {[%clk 0:03:03]}  e6 {[%clk 0:02:51]} 7. Nf3 {[%clk 0:03:02]}  Qa5+ {[%clk 0:02:50]} 8. Nbd2 {[%clk 0:03:02]}  c5 {[%clk 0:02:48]} 9. dxc5 {[%clk 0:02:39]}  Nd7 {[%clk 0:02:44]} 10. O-O {[%clk 0:02:31]}  Qc7 {[%clk 0:02:36]} 11. b4 {[%clk 0:02:22]}  Nxe5 {[%clk 0:02:36]} 12. Nxe5 {[%clk 0:02:21]}  Qxe5 {[%clk 0:02:36]} 13. Qb5+ {[%clk 0:02:21]}  Kd8 {[%clk 0:02:37]} 14. Qxb7 {[%clk 0:02:18]}  Rb8 {[%clk 0:02:35]} 15. Qxa7 {[%clk 0:02:08]}  Rxb4 {[%clk 0:02:33]} 16. Nf3 {[%clk 0:01:59]}  Qc7 {[%clk 0:02:29]} 17. Qa6 {[%clk 0:01:43]}  Bxc5 {[%clk 0:02:24]} 18. Bd2 {[%clk 0:01:38]}  Rb6 {[%clk 0:02:21]} 19. Qa5 {[%clk 0:01:35]}  Nf6 {[%clk 0:02:08]} 20. Qa4 {[%clk 0:01:24]}  Ke7 {[%clk 0:02:01]} 21. Rab1 {[%clk 0:01:13]}  Rxb1 {[%clk 0:01:51]} 22. Rxb1 {[%clk 0:01:12]}  Rb8 {[%clk 0:01:52]} 23. Rxb8 {[%clk 0:01:09]}  Qxb8 {[%clk 0:01:51]} 24. Bg5 {[%clk 0:00:51]}  Kf8 {[%clk 0:01:29]} 25. Bxf6 {[%clk 0:00:49]}  gxf6 {[%clk 0:01:30]} 26. c4 {[%clk 0:00:42]}  Qb1+ {[%clk 0:01:28]} 27. Kh2 {[%clk 0:00:41]}  Bxf2 {[%clk 0:01:28]} 28. cxd5 {[%clk 0:00:40]}  Qb8+ {[%clk 0:01:25]} 29. Kh1 {[%clk 0:00:37]}  exd5 {[%clk 0:01:25]} 30. Qd1 {[%clk 0:00:18]}  Bg3 {[%clk 0:01:19]} 31. a4 {[%clk 0:00:16]}  Qa8 {[%clk 0:01:14]} 32. Qd4 {[%clk 0:00:14]}  Qa6 {[%clk 0:01:10]} 33. Kg1 {[%clk 0:00:06]}  Qe2 {[%clk 0:01:03]} 0-1


[Site "https://www.chess.com"]

[Event "Titled Tuesday Blitz April 4 Early 2023"]
[White "Piesik, Piotr"]
[Black "Weishaeutel, Moritz"]
[WhiteFideId "1136194"]
[BlackFideId "12967300"]
[WhiteElo "2299"]
[BlackElo "2301"]
[Result "0-1"]
[Round "10"]
[TimeControl "180+2"]
[Date "2023.04.04"]
[WhiteClock "0:01:26"]
[BlackClock "0:00:58"]

1. Nf3 {[%clk 0:02:59]}  Nc6 {[%clk 0:02:58]} 2. g3 {[%clk 0:02:59]}  e5 {[%clk 0:02:58]} 3. d3 {[%clk 0:02:59]}  d5 {[%clk 0:02:58]} 4. Bg2 {[%clk 0:03:00]}  f6 {[%clk 0:02:56]} 5. O-O {[%clk 0:03:00]}  Be6 {[%clk 0:02:56]} 6. Nbd2 {[%clk 0:03:00]}  Qd7 {[%clk 0:02:56]} 7. e4 {[%clk 0:03:00]}  d4 {[%clk 0:02:56]} 8. Nh4 {[%clk 0:03:00]}  g5 {[%clk 0:02:49]} 9. Nf5 {[%clk 0:02:58]}  Nge7 {[%clk 0:02:45]} 10. f4 {[%clk 0:02:54]}  gxf4 {[%clk 0:02:42]} 11. gxf4 {[%clk 0:02:51]}  O-O-O {[%clk 0:02:35]} 12. Nxe7+ {[%clk 0:02:42]}  Bxe7 {[%clk 0:02:34]} 13. f5 {[%clk 0:02:43]}  Bf7 {[%clk 0:02:34]} 14. Kh1 {[%clk 0:02:42]}  h5 {[%clk 0:02:33]} 15. Bf3 {[%clk 0:02:34]}  h4 {[%clk 0:02:33]} 16. Nb3 {[%clk 0:02:30]}  Rdg8 {[%clk 0:02:32]} 17. Bd2 {[%clk 0:02:28]}  Qe8 {[%clk 0:02:22]} 18. Qe2 {[%clk 0:02:26]}  h3 {[%clk 0:02:16]} 19. Rg1 {[%clk 0:02:26]}  Rxg1+ {[%clk 0:01:35]} 20. Rxg1 {[%clk 0:02:27]}  Rg8 {[%clk 0:01:36]} 21. Rg3 {[%clk 0:02:25]}  Rxg3 {[%clk 0:01:25]} 22. hxg3 {[%clk 0:02:26]}  Nb4 {[%clk 0:01:26]} 23. Bxb4 {[%clk 0:02:23]}  Bxb4 {[%clk 0:01:25]} 24. Kh2 {[%clk 0:02:23]}  Qa4 {[%clk 0:01:24]} 25. Nc1 {[%clk 0:02:16]}  Bxa2 {[%clk 0:01:16]} 26. c4 {[%clk 0:02:11]}  Bb1 {[%clk 0:01:06]} 27. Kxh3 {[%clk 0:01:49]}  Qc2 {[%clk 0:01:05]} 28. Qxc2 {[%clk 0:01:42]}  Bxc2 {[%clk 0:01:06]} 29. Kg4 {[%clk 0:01:34]}  Bd2 {[%clk 0:01:05]} 30. Ne2 {[%clk 0:01:32]}  Bxd3 {[%clk 0:01:05]} 31. b3 {[%clk 0:01:31]}  Bc2 {[%clk 0:00:58]} 32. Kh5 {[%clk 0:01:30]}  Bxb3 {[%clk 0:00:57]} 33. Kg6 {[%clk 0:01:29]}  Bg5 {[%clk 0:00:57]} 34. c5 {[%clk 0:01:26]}  a5 {[%clk 0:00:58]} 0-1


[Site "https://www.chess.com"]

[Event "Titled Tuesday Blitz April 4 Early 2023"]
[White "Al-Tarboush, Ward"]
[Black "Nguyen Hong Nhung"]
[WhiteFideId "7601450"]
[BlackFideId "12412201"]
[WhiteElo "2265"]
[BlackElo "1968"]
[Result "0-1"]
[Round "10"]
[TimeControl "180+2"]
[Date "2023.04.04"]
[WhiteClock "0:00:10"]
[BlackClock "0:00:06"]

1. e4 {[%clk 0:03:00]}  c5 {[%clk 0:02:56]} 2. Nf3 {[%clk 0:03:00]}  e6 {[%clk 0:02:56]} 3. d4 {[%clk 0:03:01]}  cxd4 {[%clk 0:02:57]} 4. Nxd4 {[%clk 0:03:02]}  Nc6 {[%clk 0:02:57]} 5. Nc3 {[%clk 0:03:02]}  Qc7 {[%clk 0:02:58]} 6. Be3 {[%clk 0:03:02]}  a6 {[%clk 0:02:58]} 7. Qd2 {[%clk 0:03:02]}  Nf6 {[%clk 0:02:58]} 8. O-O-O {[%clk 0:03:02]}  Ne5 {[%clk 0:02:56]} 9. f4 {[%clk 0:02:58]}  Neg4 {[%clk 0:02:49]} 10. e5 {[%clk 0:02:56]}  Nxe3 {[%clk 0:02:44]} 11. Qxe3 {[%clk 0:02:56]}  Ng4 {[%clk 0:02:41]} 12. Qf3 {[%clk 0:02:52]}  f5 {[%clk 0:02:31]} 13. Nd5 {[%clk 0:02:33]}  exd5 {[%clk 0:02:23]} 14. Nxf5 {[%clk 0:02:32]}  Nh6 {[%clk 0:02:07]} 15. Nxh6 {[%clk 0:02:31]}  gxh6 {[%clk 0:02:08]} 16. Qh5+ {[%clk 0:02:30]}  Kd8 {[%clk 0:02:01]} 17. Bd3 {[%clk 0:02:30]}  b5 {[%clk 0:01:56]} 18. Rhe1 {[%clk 0:02:17]}  Bb7 {[%clk 0:01:31]} 19. f5 {[%clk 0:02:17]}  Kc8 {[%clk 0:01:28]} 20. e6 {[%clk 0:02:15]}  dxe6 {[%clk 0:01:27]} 21. fxe6 {[%clk 0:02:16]}  Be7 {[%clk 0:01:23]} 22. Qxh6 {[%clk 0:02:12]}  Kb8 {[%clk 0:01:21]} 23. Qe3 {[%clk 0:02:10]}  Rg8 {[%clk 0:01:16]} 24. Kb1 {[%clk 0:02:00]}  Rxg2 {[%clk 0:01:16]} 25. Rf1 {[%clk 0:01:33]}  Bc6 {[%clk 0:01:00]} 26. Rf7 {[%clk 0:01:18]}  Kb7 {[%clk 0:00:54]} 27. Rdf1 {[%clk 0:01:15]}  Re8 {[%clk 0:00:53]} 28. a4 {[%clk 0:01:16]}  Qb6 {[%clk 0:00:39]} 29. Qh3 {[%clk 0:01:09]}  Rg1 {[%clk 0:00:34]} 30. Qxh7 {[%clk 0:01:09]}  Rxf1+ {[%clk 0:00:34]} 31. Bxf1 {[%clk 0:01:10]}  Qc5 {[%clk 0:00:34]} 32. Bd3 {[%clk 0:01:04]}  bxa4 {[%clk 0:00:32]} 33. h4 {[%clk 0:00:33]}  a3 {[%clk 0:00:20]} 34. bxa3 {[%clk 0:00:33]}  Qxa3 {[%clk 0:00:20]} 35. Rf3 {[%clk 0:00:12]}  Ka8 {[%clk 0:00:17]} 36. Bb5 {[%clk 0:00:09]}  Qb4+ {[%clk 0:00:11]} 37. Rb3 {[%clk 0:00:09]}  Qe1+ {[%clk 0:00:11]} 38. Ka2 {[%clk 0:00:09]}  Bxb5 {[%clk 0:00:11]} 39. Qg6 {[%clk 0:00:10]}  Rb8 {[%clk 0:00:09]} 40. Qf7 {[%clk 0:00:10]}  Qa5+ {[%clk 0:00:07]} 41. Kb2 {[%clk 0:00:10]}  Qc7 {[%clk 0:00:05]} 42. h5 {[%clk 0:00:10]}  Bc4 {[%clk 0:00:05]} 43. Rxb8+ {[%clk 0:00:10]}  Qxb8+ {[%clk 0:00:06]} 44. Kc1 {[%clk 0:00:10]}  Bg5+ {[%clk 0:00:06]} 45. Kd1 {[%clk 0:00:10]}  Qb1# {[%clk 0:00:06]} 0-1


[Site "https://www.chess.com"]